Cogmind - Beta 9.3 @@@ ROGUE MODE // 2020.01.06 @ 12:51:17 Player: Klin Result: Self-destructed Performance ------------- Evolutions (1) 500 Regions Visited (3) 600 Robots Destroyed (10) 50 Value Destroyed (313) 313 Prototype IDs (0) 0 Alien Tech Used (0) 0 Bonus (0) 0 TOTAL SCORE: 1463 Bonus ------- None Cogmind --------- Core Integrity 185/400 Matter 113/300 Energy 265/265 System Corruption 0% Temperature Cool (0) Movement Walking (120) Location -9/Materials Parts ------- > --- POWER (1) -------- Reinforced Ion Engine > --- PROPULSION (2) --- Aluminum Leg Aluminum Leg > --- UTILITY (4) ------ Structural Scanner Terrain Scan Processor Targeting Computer > --- WEAPON (2) ------- Assault Rifle > --- INVENTORY (4) ---- Reinforced Ion Engine Beam Cannon Beam Cannon Assault Rifle Peak State ------------ > --- POWER ------------ Reinforced Ion Engine > --- PROPULSION ------- Aluminum Leg Aluminum Leg > --- UTILITY ---------- Structural Scanner Terrain Scan Processor Targeting Computer Shield Generator > --- WEAPON ----------- Assault Rifle Rocket Launcher > --- INVENTORY -------- Reinforced Ion Engine Beam Cannon Beam Cannon Assault Rifle [Rating: 13] Favorites ----------- Power Ion Engine Engine Ion Engine Propulsion Aluminum Leg Leg Aluminum Leg Utility Structural Scanner Device Structural Scanner Processor Targeting Computer Weapon Assault Rifle Ballistic Gun Assault Rifle Launcher Rocket Launcher Build | -11 -10 -10 -9 ------- Run | Scr Mat Min Mat Slots Evolved 2 | . . . 2 Power . | . . . . Propulsion . | . . . . Utility 2 | . . . 2 Weapon . | . . . . Parts Attached 12 | 3 5 . 4 Power 2 | 1 . . 1 Engine 2 | 1 . . 1 Core . | . . . . Reactor . | . . . . Propulsion 2 | 2 . . . Treads . | . . . . Leg 2 | 2 . . . Wheel . | . . . . Hover . | . . . . Flight . | . . . . Utility 5 | . 3 . 2 Device 2 | . 1 . 1 Storage . | . . . . Processor 3 | . 2 . 1 Hackware . | . . . . Protection . | . . . . Artifact . | . . . . Weapon 3 | . 2 . 1 Energy Gun . | . . . . Energy Cannon . | . . . . Ballistic Gun 2 | . 2 . . Ballistic Cannon . | . . . . Launcher 1 | . . . 1 Special Weapon . | . . . . Impact Weapon . | . . . . Slashing Weapon . | . . . . Piercing Weapon . | . . . . Special Melee Weapon . | . . . . Unidentified Prototypes . | . . . . Parts Lost 2 | . . . 2 Power . | . . . . Propulsion . | . . . . Utility 1 | . . . 1 Weapon 1 | . . . 1 Highest Loss Streak 2 | . . . 2 Average Slot Usage (%) 85 | . 80 100 91 Engine 12 | . 14 14 11 Leg 25 | . 28 28 22 Device 9 | . 4 14 16 Processor 10 | . 4 14 21 Ballistic Gun 25 | . 28 28 20 Naked Turns . | . . . . Heaviest Build 19 | 5 10 10 19 Greatest Support 20 | 3 20 20 20 Greatest Overweight (x) 2 | 1 2 . . Average Overweight (x) . | . . . . Largest Inventory Capacity 4 | 4 4 4 4 Average Capacity 4 | 4 4 4 4 Most Carried 4 | 3 4 4 4 Average Carried 3 | 1 3 4 3 Final Capacity 4 | 4 4 4 4 Final Carried 4 | 2 4 4 4 Class Distribution -------------------- 100% | Mutant Dominant Class ---------------- Mutant | -10/Materials Mutant | -10/Mines Mutant | -9/Materials Resources | -11 -10 -10 -9 ----------- Run | Scr Mat Min Mat Matter Collected 331 | 176 114 . 41 Remotely . | . . . . Salvage Created 377 | . 145 . 232 Parts 23 | . 6 . 17 Haulers Intercepted . | . . . . Recyclers Shooed . | . . . . Parts Field Recycled . | . . . . Retrieved Matter . | . . . . Parts Self-Destructed . | . . . . Prevented . | . . . . Kills | -11 -10 -10 -9 ------- Run | Scr Mat Min Mat Combat Hostiles Destroyed 6 | . 1 . 5 Guns 5 | . 1 . 4 AOE 1 | . . . 1 Classes Destroyed 6 | . 3 . 3 Worker 2 | . . . 2 Recycler 1 | . 1 . . Watcher 1 | . 1 . . Grunt 3 | . 1 . 2 Duelist 1 | . . . 1 Sentry 2 | . . . 2 Best Kill Streak 3 | . 2 . 3 Combat Bots Only 3 | . 1 . 3 Max Kills in Single Turn 2 | . 1 . 2 Gunslinging . | . . . . Exploded 1 | . . . 1 Melee . | . . . . Uniques/NPCs Destroyed . | . . . . Combat | -11 -10 -10 -9 -------- Run | Scr Mat Min Mat Damage Taken 734 | . 12 . 722 Core 227 | . 12 . 215 Absorbed by Shields . | . . . . Core Remaining (%) 97 | 100 . 95 . Volleys Fired 37 | . 8 . 29 Largest 2 | . 2 . 2 Hottest 53 | . 40 . 53 Shots Fired 64 | . 16 . 48 Gun 62 | . 16 . 46 Cannon . | . . . . Launcher 2 | . . . 2 Special . | . . . . Kinetic 62 | . 16 . 46 Thermal . | . . . . Explosive 2 | . . . 2 Electromagnetic . | . . . . Robot Hit Streak 7 | . 7 . 7 Robot Miss Streak 5 | . 5 . 3 Penetration Max . | . . . . Secondary Targets 1 | . . . 1 Max Gunslinging Chain 1 | . . . 1 Shots Hit Robots 42 | . 9 . 33 Core Hits 18 | . 5 . 13 Critical Hits . | . . . . Critical Kills . | . . . . Critical Parts Destroyed . | . . . . Melee Attacks . | . . . . Impact . | . . . . Slashing . | . . . . Piercing . | . . . . Sneak Attacks . | . . . . Combat Hostiles . | . . . . Follow-up Attacks . | . . . . Damage Inflicted 682 | . 93 . 589 Guns 499 | . 93 . 406 Cannons . | . . . . Explosions 183 | . . . 183 Melee . | . . . . Ramming . | . . . . Kinetic 499 | . 93 . 406 Thermal 115 | . . . 115 Explosive 68 | . . . 68 Electromagnetic . | . . . . Impact . | . . . . Slashing . | . . . . Piercing . | . . . . Highest Corruption 1 | . 1 1 . Average Corruption 1 | . 1 1 . Corruption Purged . | . . . . Overload Shots . | . . . . Overflow Damage 57 | . . . 57 Projectiles . | . . . . Explosions 57 | . . . 57 Melee . | . . . . Knockbacks . | . . . . Impact . | . . . . Kinetic . | . . . . Secondary . | . . . . Self-Inflicted Damage 10 | . . . 10 Shots 1 | . . . 1 Rammed . | . . . . Targets Rammed . | . . . . Kicked . | . . . . Crushed . | . . . . Highest Temperature 10 | . . . 10 Average Temperature 4 | . . . 4 Received Heat Transfer 216 | . 6 . 210 Siege Activations . | . . . . Robots Corrupted . | . . . . Combat Hostiles . | . . . . Parts Fried . | . . . . Impact Corruptions . | . . . . Robots Melted . | . . . . Combat Hostiles . | . . . . Parts Melted . | . . . . Heat Transferred 100 | . . . 100 Parts Sabotaged . | . . . . Parts Stolen . | . . . . Parts Stripped . | . . . . Power Chain Reactions . | . . . . Missiles Intercepted . | . . . . Alert | -11 -10 -10 -9 ------- Run | Scr Mat Min Mat Peak Influence 205 | . 106 40 205 Average Influence 51 | . 46 40 68 Maximum Alert Level 1 | . . . 1 Low Security (%) 97 | 100 100 100 93 Level 1 2 | . . . 6 Level 2 . | . . . . Level 3 . | . . . . Level 4 . | . . . . Level 5 . | . . . . High Security . | . . . . Max Security . | . . . . Squads Dispatched 3 | . 2 . 1 Investigation . | . . . . Extermination . | . . . . Reinforcement 3 | . 2 . 1 Assault . | . . . . Garrison . | . . . . Intercept . | . . . . Construction Impeded . | . . . . Haulers Reinforced . | . . . . Stealth | -11 -10 -10 -9 --------- Run | Scr Mat Min Mat Distress Signals 1 | . . . 1 Communications Jammed . | . . . . Distress Signals . | . . . . Times Spotted 14 | . 5 . 9 Peak Tracking Total 6 | . 2 . 6 Tactical Retreats . | . . . . Traps | -11 -10 -10 -9 ------- Run | Scr Mat Min Mat Traps Triggered . | . . . . Indirectly . | . . . . Trap Hack Attempts . | . . . . Triggered . | . . . . Disarmed . | . . . . Reprogrammed . | . . . . Reused . | . . . . Traps Extracted . | . . . . Installed . | . . . . Triggered . | . . . . Machines | -11 -10 -10 -9 ---------- Run | Scr Mat Min Mat Machines Disabled 5 | . 2 . 3 Max in Single Turn 2 | . 2 . 1 Machines Sabotaged . | . . . . Garrisons Compromised . | . . . . Overloaded Fab Kills . | . . . . Fab Network Shutdowns . | . . . . Hacking | -11 -10 -10 -9 --------- Run | Scr Mat Min Mat Machines Accessed 1 | . 1 . . Terminals 1 | . 1 . . Fabricators . | . . . . Repair Stations . | . . . . Recycling Units . | . . . . Scanalyzers . | . . . . Garrison Access . | . . . . Total Hacks 3 | . 3 . . Successful 2 | . 2 . . Failed 1 | . 1 . . Catastrophic 1 | . 1 . . Database Lockouts . | . . . . Manual . | . . . . Terminals 3 | . 3 . . Fabricators . | . . . . Repair Stations . | . . . . Recycling Units . | . . . . Scanalyzers . | . . . . Garrison Access . | . . . . Terminal Hacks 2 | . 2 . . Dispatch Records 1 | . 1 . . Registered Components 1 | . 1 . . Fabricator Hacks . | . . . . Repair Station Hacks . | . . . . Recycling Unit Hacks . | . . . . Scanalyzer . | . . . . Garrison Access Hacks . | . . . . Unauthorized Hacks . | . . . . Terminals . | . . . . Fabricators . | . . . . Repair Stations . | . . . . Recycling Units . | . . . . Scanalyzers . | . . . . Garrison Access . | . . . . Data Cores Recovered . | . . . . Used . | . . . . Hacking Detections 1 | . 1 . . Full Trace Events 1 | . 1 . . Feedback Events 1 | . 1 . . Corruption 1 | . 1 . . Feedback Blocked . | . . . . Robot Schematics Acquired . | . . . . Robots Built . | . . . . Matter . | . . . . Time . | . . . . Total Robot Build Rating . | . . . . Part Schematics Acquired . | . . . . Parts Built . | . . . . Matter . | . . . . Time . | . . . . Total Part Build Rating . | . . . . Parts Repaired . | . . . . Time . | . . . . Parts Recycled . | . . . . Recycled Matter . | . . . . Retrieved Matter . | . . . . Retrieved Components . | . . . . Parts Scanalyzed . | . . . . Part Schematics Acquired . | . . . . Parts Damaged . | . . . . Bothacking | -11 -10 -10 -9 ------------ Run | Scr Mat Min Mat Used RIF Installer . | . . . . Robots Hacked . | . . . . Non-combat . | . . . . Combat . | . . . . Robot Hacks Applied . | . . . . Relay Couplers Released . | . . . . Robots Rewired . | . . . . Allies Hacked . | . . . . Hacks Repelled . | . . . . Allies | -11 -10 -10 -9 -------- Run | Scr Mat Min Mat Total Allies . | . . . . Largest Group . | . . . . Highest-Rated Group . | . . . . Highest-Rated Ally . | . . . . Total Orders . | . . . . Ally Attacks . | . . . . Total Damage . | . . . . Kills . | . . . . Allies Corrupted . | . . . . Allies Melted . | . . . . Intel | -11 -10 -10 -9 ------- Run | Scr Mat Min Mat Robot Analysis Total . | . . . . Derelict Logs Recovered . | . . . . Drone Launches . | . . . . Drone Recoveries . | . . . . Exploration | -11 -10 -10 -9 ------------- Run | Scr Mat Min Mat Turns Passed 667 | 35 366 36 230 Spaces Moved 413 | 32 234 28 119 Core 110 | 32 78 . . Treads . | . . . . Legs 303 | . 156 28 119 Wheels . | . . . . Hover . | . . . . Flight . | . . . . Fastest Speed 50 | 50 120 120 120 Average Speed 122 | 84 130 120 120 Slowest Speed 150 | 100 150 120 120 Overloaded Moves . | . . . . Propulsion Burnouts . | . . . . Robots Hopped . | . . . . Cave-ins Triggered . | . . . . Exploration Rate (%) 14 | 3 30 11 12 Regions Visited 3 Branch Regions 1 Pre-discovered Areas . | . . . . Known Exits Taken . | . . . . Unknown Exits Taken 3 | 1 1 1 . Scrap Searched . | . . . . Spaces Dug . | . . . . Terrain Destroyed 40 | . 8 . 32 Melee . | . . . . Projectile . | . . . . AOE 40 | . 8 . 32 Actions | -11 -10 -10 -9 --------- Run | Scr Mat Min Mat Total 505 | 39 279 30 157 Wait 30 | . 27 3 . Move 410 | 31 233 27 119 Hop . | . . . . Pick Up 14 | 5 6 . 3 Fast Attach 2 | . 1 . 1 Attach 7 | 3 3 . 1 Detach . | . . . . Swap 3 | . 1 . 2 Drop 2 | . . . 2 Fire 37 | . 8 . 29 Melee . | . . . . Ram . | . . . . Kick . | . . . . Crush . | . . . . Escape Stasis . | . . . . Rewire . | . . . . Trap . | . . . . Miscellaneous . | . . . . Route ------- -11/Scrapyard -10/Materials -10/Mines -9/Materials History --------- Turn | Location | Event 4 | -11/Scrapyard | Discovered new exit (range 16) 36 | -11/Scrapyard | Entered Materials 316 | -10/Materials | Build established: Mutant 381 | -10/Materials | Discovered new exit (range 14) 402 | -10/Materials | Entered Mines 426 | -10/Mines | Discovered new exit (range 9) 438 | -10/Mines | Entered Materials 438 | -9/Materials | Evolved 2 slots: Utility x2 657 | -9/Materials | Core integrity fell below 50% 668 | -9/Materials | Self-destructed Last Messages --------------- Shield Generator destroyed. G-34 Mercenary destroyed. L-31 Rogue destroyed. G-34 Mercenary destroyed. Electrolysis Chamber disabled. K-01 Serf collects debris. Rocket Launcher destroyed. K-01 Serf collects debris. Fusion Modulator explodes. Destroyed Heat Sink. K-01 Serf collects debris. Y-45 Defender destroyed. Acquired 41 matter. K-01 Serf collects debris. U-05 Engineer lays Concrete. U-05 Engineer builds a Wall. K-01 Serf collects debris. U-05 Engineer builds a Wall. K-01 Serf collects debris. U-05 Engineer lays Concrete. Map ----- +----------------------------------------------------+ | | | | | | | | | | | | | | | | | | | | | | | | | | | | | | | | | | | | | | | | | ????????????????????#######;;;;;##########???????? | | ???????????????###### ; ! ???????? | | ???????????????# ] ???????? | | ???????????????# =!==! """ """ ??????? | | ???????????????# * * """ """ #?????? | | ???????#######?# = @ """ """ #?????? | | ####+### [#?# """ k % *= #?????? | | # #?# """ " Y %= #?????? | | # #?# """ """u# ;;;+####+###??????? | | # #?# # ; #??????????? | | ######## #?##"T"#+#+####;;; #??????????? | | ?????#####+########## ^^ #??????????? | | ?????# + ^^ %! #??????????? | | ?????# """ """ ###### ^^ #??????????? | | ?????# """ """ #??#####+####### #??????????? | | ?????# """ """ #??# #?# #??????????? | | ?????# #### #?###u ###??????????? | | ?????# ** #""" """"""" #???# #????????????? | | ?????# * #"R """"""" #???# #????????????? | | ?????# * #""" """"""" #???# #????????????? | | ?????########### "" """"""" #???? ?????????????? | | ???????????????#### """"""" #???? ?????????????? | | ??????????????????# #???? ?????????????? | | ??????????????????###########????????????????????? | | ?????????????????????????????????????????????????? | | ?????????????????????????????????????????????????? | | ?????????????????????????????????????????????????? | | ?????????????????????????????????????????????????? | | ?????????????????????????????????????????????????? | | ?????????????????????????????????????????????????? | +----------------------------------------------------+ Best States ------------- Heat Dissipation 28 Energy Generation 12 Energy Capacity 265 Matter Stores 300 Matter Capacity 300 Sight Range 16 Terrain Scan Density 85 Evasion (%) 50 Targeting Accuracy 5 Item Schematics ----------------- None Robot Schematics ------------------ None Fabricated ------------ Nothing Alien Tech Used ----------------- None Achievements -------------- None Challenges ------------ None Game ------ Seed InertialLightningWeb Manual? 0 Play Time 00:08:23 Cumulative 4.0 hours Start 2020.01.06 @ 12:45:02 End 2020.01.06 @ 12:51:17 Sessions 1 Manual Loads 0 Difficulty Rogue Special Mode None Game No. 14 Rogue 14 Adventurer 0 Explorer 0 Win Type - Total 0 Types 0/0/0/0/0/0/0 Lore% 3 Gallery% 10 Achievement% 7 Wizard Run 0 Options --------- ASCII 0 Keyboard 0 Movement Numpad Keybinds 0 Fullscreen 1 Font 18/SmallcapsGlow Map View 76x50 Tactical HUD 0 Map Filters NONE Filters NONE Steam 1 RUN: 88ab5adc-ec53-4e54-8d74-a6407682a3f0